bitfinex-derivatives/quotes_SOLF0:USTF0_20240824
["timestamp","ask_amount","ask_price","bid_price","bid_amount"]
[1724485068739,0.04873916,154.36,154.35,3.20264513]
[1724485072644,1.3667,154.43,154.35,11.14264513]
[1724485072845,1.3667,154.43,154.36,3.20264513]
[1724485073044,7.94,154.42,154.37,3.20264513]
[1724485073239,7.94,154.42,154.38,3.20264513]
[1724485073440,7.94,154.42,154.35,7.94]
[1724485073441,3.2364,154.4,154.39,3.20264513]
[1724485073650,3.2364,154.4,154.38,0.04717486]
[1724485073850,3.2364,154.4,154.39,3.20031746]
[1724485076545,11.2175136,154.41,154.39,3.20031746]
[1724485076744,11.2175136,154.41,154.38,0.04717486]
[1724485077348,0.0412136,154.41,154.38,3.28387486]
[1724485077541,0.0412136,154.41,154.39,3.20004192]
[1724485077740,0.0412136,154.41,154.4,3.20004192]
[1724485080451,0.0412136,154.41,154.38,4.60787486]
[1724485080649,0.0412136,154.41,154.39,6.43478567]
[1724485080860,0.0412136,154.41,154.39,3.2366]
[1724485081053,0.0412136,154.41,154.4,3.19829738]
[1724485082759,0.0412136,154.41,154.39,3.2366]
[1724485082948,0.0412136,154.41,154.4,3.19905261]
[1724485085986,0.0412136,154.41,154.39,3.2366]
[1724485086355,0.0412136,154.41,154.4,3.20005957]
[1724485089386,0.0412136,154.41,154.39,3.2366]
[1724485089655,0.0412136,154.41,154.4,3.20047402]
[1724485090159,0.0412136,154.41,154.4,3.20054316]
[1724485092857,0.0412136,154.41,154.39,3.2366]
[1724485093054,0.0412136,154.41,154.4,3.20068878]
[1724485093455,0.0412136,154.41,154.38,1.37107486]
[1724485093456,7.9812136,154.41,154.38,3.28397486]
[1724485093656,0.0412136,154.41,154.39,11.14123845]
[1724485093955,3.2355,154.45,154.41,3.236]
[1724485095053,3.27711962,154.45,154.41,3.2813319]
[1724485102067,11.21711962,154.45,154.41,3.2813319]
[1724485103470,3.27711962,154.45,154.41,3.2813319]
[1724485105169,0.04161962,154.45,154.42,3.236]
[1724485105367,0.04161962,154.45,154.42,7.94]
[1724485106273,0.04161962,154.45,154.43,3.2356]
[1724485107565,0.04161962,154.45,154.44,3.2356]
[1724485115574,0.04161962,154.45,154.41,0.0453319]
[1724485115769,7.98161962,154.45,154.42,3.19793958]
[1724485115965,7.98161962,154.45,154.41,0.0453319]
[1724485116474,7.98161962,154.45,154.42,6.43357395]
[1724485116776,7.98161962,154.45,154.42,3.2358]
[1724485117168,0.04161962,154.45,154.43,3.2358]
[1724485125376,0.04161962,154.45,154.43,11.1758]
[1724485126981,0.04161962,154.45,154.43,3.2358]
[1724485127177,0.04161962,154.45,154.44,3.2356]
[1724485132983,3.2348,154.48,154.45,3.2352]
[1724485133184,7.94,154.49,154.43,7.94]
[1724485133785,7.94,154.49,154.44,3.2355]
[1724485133978,0.04204954,154.48,154.45,0.04912754]
[1724485134173,3.27694954,154.48,154.45,0.04912754]
[1724485134880,3.235,154.47,154.45,0.04912754]
[1724485135078,7.94,154.46,154.45,0.04912754]
[1724485135884,0.04204954,154.48,154.45,0.04912754]
[1724485136080,7.98204954,154.48,154.45,0.04912754]
[1724485138288,11.21684954,154.48,154.45,3.28452754]
[1724485138689,3.27684954,154.48,154.45,3.28452754]
[1724485138887,11.21684954,154.48,154.45,3.28452754]
[1724485139779,0.04204954,154.48,154.45,7.98912754]
[1724485140389,0.04204954,154.48,154.46,3.19649264]
[1724485140691,0.04204954,154.48,154.45,7.98912754]
[1724485140989,0.04204954,154.48,154.46,3.19660907]
[1724485141180,0.04204954,154.48,154.47,3.19660907]
[1724485142411,0.04204954,154.48,154.47,6.43160907]
[1724485142599,0.04204954,154.48,154.47,6.43186875]
[1724485148697,3.27684954,154.48,154.47,3.19686875]
[1724485148899,7.98204954,154.48,154.45,3.28442754]
[1724485149121,0.04204954,154.48,154.46,3.19857704]
[1724485149306,0.04204954,154.48,154.45,3.28442754]
[1724485149723,0.04204954,154.48,154.46,3.19836372]
[1724485149900,0.04204954,154.48,154.46,3.2352]
[1724485150102,0.04204954,154.48,154.47,3.19813781]
[1724485151000,0.04204954,154.48,154.46,3.2352]
[1724485153103,3.27684954,154.48,154.45,3.28442754]
[1724485153406,3.27684954,154.48,154.46,3.19880695]
[1724485153605,3.27684954,154.48,154.45,3.28442754]
[1724485153906,3.27684954,154.48,154.46,3.19880695]
[1724485154103,3.27684954,154.48,154.45,3.28442754]
[1724485154304,3.27684954,154.48,154.46,3.1986997]
[1724485154494,3.27684954,154.48,154.45,3.28442754]
[1724485154698,3.27684954,154.48,154.46,3.1986997]
[1724485154899,3.27684954,154.48,154.45,3.28442754]
[1724485155098,3.27684954,154.48,154.46,3.1986997]
[1724485155309,3.27684954,154.48,154.45,3.28442754]
[1724485155606,3.27684954,154.48,154.46,3.19848525]
[1724485155800,3.27684954,154.48,154.45,3.28442754]
[1724485155997,3.235,154.47,154.46,3.1984553]
[1724485156201,7.94,154.47,154.46,3.1984553]
[1724485157403,11.175,154.47,154.46,3.1984553]
[1724485157908,3.2352,154.46,154.45,0.04912754]
[1724485158107,11.1752,154.46,154.45,0.04912754]
[1724485173628,3.2359,154.43,154.36,7.94]
[1724485173820,11.1759,154.43,154.39,3.2365]
[1724485174020,11.1759,154.43,154.4,3.20262662]
[1724485174221,11.1759,154.43,154.41,3.20262662]
[1724485174521,11.1759,154.43,154.42,3.20262662]
[1724485176533,11.1759,154.43,154.4,0.04718336]
[1724485176924,11.1759,154.43,154.41,3.2024508]
[1724485177124,11.1759,154.43,154.42,3.2024508]
[1724485178127,11.1759,154.43,154.4,0.04718336]
[1724485178330,11.1759,154.43,154.42,3.20222066]
[1724485180066,11.1759,154.43,154.4,0.04718336]
[1724485180229,11.1759,154.43,154.41,3.20253629]
[1724485180425,11.1759,154.43,154.42,3.20253629]
[1724485180730,11.1759,154.43,154.42,3.20253451]
[1724485183547,11.1759,154.43,154.4,0.04718336]
[1724485183731,11.1759,154.43,154.42,3.20290581]
[1724485186230,11.1759,154.43,154.4,0.04718336]
[1724485186538,11.1759,154.43,154.41,3.2034456]
[1724485186731,11.1759,154.43,154.4,0.04718336]
[1724485186931,11.1759,154.43,154.41,3.20344559]
[1724485187233,11.1759,154.43,154.4,0.04718336]
[1724485187434,11.1759,154.43,154.41,3.20351643]
[1724485187636,11.1759,154.43,154.4,0.04718336]
[1724485187837,11.1759,154.43,154.41,3.20351642]
[1724485188033,11.1759,154.43,154.4,0.04718336]
[1724485188229,11.1759,154.43,154.41,3.20351425]
[1724485188432,11.1759,154.43,154.4,0.04718336]
[1724485188637,3.236,154.42,154.41,3.20351425]
[1724485190543,3.236,154.42,154.41,3.20351664]
[1724485193845,3.236,154.42,154.4,0.04718336]
[1724485194035,3.236,154.42,154.41,3.20351664]
[1724485194241,3.2359,154.43,154.41,3.20351663]
[1724485194851,3.2359,154.43,154.4,0.04718336]
[1724485195142,3.2359,154.43,154.41,3.20351663]
[1724485195332,3.2359,154.43,154.4,0.04718336]
[1724485195536,3.2359,154.43,154.41,3.20351663]
[1724485195735,3.2359,154.43,154.4,3.28358336]
[1724485195935,3.2359,154.43,154.41,3.20351663]
[1724485196135,3.2359,154.43,154.4,3.28358336]
[1724485196337,3.2359,154.43,154.41,3.2035653]
[1724485196545,3.2359,154.43,154.4,3.28358336]
[1724485196744,3.2359,154.43,154.41,3.2035653]
[1724485196973,3.2359,154.43,154.4,3.28358336]
[1724485197536,3.2359,154.43,154.41,3.20354923]
[1724485197740,3.2359,154.43,154.4,3.28358336]
[1724485197946,3.2359,154.43,154.41,3.20325788]
[1724485198251,3.2359,154.43,154.4,3.28358336]
[1724485198446,3.2359,154.43,154.41,3.20325788]
[1724485198646,3.2359,154.43,154.4,3.28358336]
[1724485198846,3.2359,154.43,154.41,3.20313271]
[1724485199151,3.2359,154.43,154.4,3.28358336]
[1724485199449,3.2359,154.43,154.41,3.2031327]
[1724485199645,3.2359,154.43,154.4,0.04718336]
[1724485200647,11.176,154.42,154.4,0.04718336]
[1724485211457,11.176,154.42,154.41,3.20376697]
[1724485211956,11.176,154.42,154.4,0.04718336]
[1724485211957,3.2362,154.41,154.4,0.04718336]
[1724485212255,11.1762,154.41,154.4,0.04718336]
[1724485220161,3.2362,154.41,154.4,0.04718336]
[1724485220362,11.1762,154.41,154.4,0.04718336]
[1724485221465,3.2362,154.41,154.4,0.04718336]
[1724485221658,11.1762,154.41,154.4,0.04718336]
[1724485226871,3.2362,154.41,154.4,0.04718336]
[1724485227367,11.1762,154.41,154.4,0.04718336]
[1724485232066,3.2362,154.41,154.4,0.04718336]
[1724485232371,11.1762,154.41,154.4,3.25261472]
[1724485232576,3.31387943,154.44,154.4,3.25261472]
[1724485232577,0.04769294,154.44,154.4,3.25261472]
[1724485232767,0.04769294,154.44,154.41,3.20392025]
[1724485232967,7.94,154.43,154.42,3.20392025]
[1724485233467,0.04769294,154.44,154.42,3.20392025]
[1724485233767,7.98769294,154.44,154.4,0.04718336]
[1724485233970,7.98769294,154.44,154.41,3.20350363]
[1724485234162,7.98769294,154.44,154.42,3.20350363]
[1724485234360,3.2359,154.43,154.4,0.04718336]
[1724485234563,3.2359,154.43,154.41,3.20342967]
[1724485234865,3.2359,154.43,154.42,3.20342967]
[1724485236168,3.2359,154.43,154.4,0.04718336]
[1724485236367,3.2359,154.43,154.41,3.20384325]
[1724485236568,3.2359,154.43,154.42,3.20384325]
[1724485236971,3.2359,154.43,154.42,3.20362089]
[1724485239569,3.2359,154.43,154.4,0.04718336]
[1724485239774,3.2359,154.43,154.41,3.2033172]
[1724485239970,3.2359,154.43,154.4,0.04718336]
[1724485239971,3.2359,154.43,154.42,3.2033172]
[1724485240869,6.51760854,154.43,154.42,3.2033172]
[1724485241073,14.45760854,154.43,154.42,3.2033172]
[1724485241871,3.2361,154.42,154.4,0.04718336]
[1724485242070,7.94,154.41,154.4,0.04718336]
[1724485242578,7.94,154.41,154.4,3.25096587]
[1724485245773,7.94,154.41,154.4,0.04718336]
[1724485245976,3.2361,154.42,154.4,3.25043563]
[1724485246178,11.1761,154.42,154.41,3.20325227]
[1724485248983,11.1761,154.42,154.4,0.04718336]
[1724485249381,11.1761,154.42,154.41,3.203018]
[1724485252887,11.1761,154.42,154.4,0.04718336]
[1724485253181,11.1761,154.42,154.41,3.20260593]
[1724485253583,3.2361,154.42,154.41,3.20260593]
[1724485253884,11.1761,154.42,154.41,3.20260593]
[1724485255488,11.1761,154.42,154.4,0.04718336]
[1724485255683,11.1761,154.42,154.41,3.20256649]
[1724485257283,7.94,154.42,154.41,3.20256649]
[1724485259293,7.94,154.42,154.41,3.20201848]
[1724485260990,11.176,154.42,154.41,3.20201848]
[1724485262290,11.1759,154.43,154.41,3.20201848]
[1724485262490,11.1759,154.43,154.42,3.20201848]
[1724485264188,11.1759,154.43,154.4,0.04718336]
[1724485264389,11.1759,154.43,154.41,3.20258014]
[1724485264582,11.1759,154.43,154.42,3.20258014]
[1724485265489,3.2359,154.43,154.42,3.20258014]
[1724485265687,11.1759,154.43,154.42,3.20258014]
[1724485265919,11.1759,154.43,154.4,0.04718336]
[1724485266082,11.1759,154.43,154.42,3.20234107]
[1724485267414,11.1759,154.43,154.4,0.04718336]
[1724485267592,11.1759,154.43,154.41,3.20221501]
[1724485267896,11.1759,154.43,154.4,0.04718336]
[1724485268296,11.1759,154.43,154.41,3.20222901]
[1724485268495,3.2362,154.41,154.4,0.04718336]
[1724485268994,7.94,154.41,154.4,3.20377306]
[1724485270296,11.1762,154.41,154.4,3.20377306]
[1724485270725,11.1762,154.41,154.39,0.04583719]
[1724485270995,11.1762,154.41,154.4,3.20318811]
[1724485274503,3.2364,154.4,154.39,0.04583719]
[1724485274904,3.2364,154.4,154.39,3.2491373]
[1724485277404,3.2364,154.4,154.39,3.24971829]
[1724485277805,3.2364,154.4,154.39,0.04583719]
[1724485278005,3.2364,154.4,154.39,3.24964518]
[1724485280640,3.2364,154.4,154.39,0.04583719]
[1724485280804,3.2364,154.4,154.39,3.249746]
[1724485281808,3.2372,154.37,154.34,1.2542]
[1724485282021,7.94,154.36,154.34,1.2542]
[1724485283711,11.1774,154.36,154.34,1.2542]
[1724485293319,3.2374,154.36,154.34,1.2542]
[1724485294020,3.2374,154.36,154.35,3.20229857]
[1724485297019,3.2374,154.36,154.34,1.2542]
[1724485297222,3.2374,154.36,154.35,3.20138036]
[1724485297617,3.2374,154.36,154.34,1.2542]
[1724485297921,3.2374,154.36,154.35,3.20128384]
[1724485299621,11.22100799,154.37,154.35,3.20128384]
[1724485299823,11.22100799,154.37,154.36,3.20128384]
[1724485300232,11.22100799,154.37,154.34,1.2542]
[1724485300522,11.22100799,154.37,154.35,3.20102636]
[1724485300721,3.28100799,154.37,154.36,3.20102636]
[1724485301024,11.22100799,154.37,154.36,3.20102636]
[1724485304427,3.28100799,154.37,154.36,3.20102636]
[1724485307127,3.28100799,154.37,154.34,1.2542]
[1724485307340,3.28100799,154.37,154.36,3.20083336]
[1724485307524,3.28100799,154.37,154.36,3.20088809]
[1724485307717,0.04390799,154.37,154.36,3.20088809]
[1724485308337,0.04390799,154.37,154.34,3.20088809]
[1724485308527,3.28100799,154.37,154.33,3.27934693]
[1724485308730,3.28100799,154.37,154.34,3.2009903]
[1724485308924,3.28100799,154.37,154.35,3.2009903]
[1724485309124,3.28100799,154.37,154.36,3.2009903]
[1724485310346,0.04390799,154.37,154.34,3.2376]
[1724485310728,0.04390799,154.37,154.36,3.20079987]
[1724485312130,0.04390799,154.37,154.36,6.43809987]
[1724485313134,3.2362,154.41,154.37,3.237]
[1724485313333,3.2362,154.41,154.38,3.20079987]
[1724485313528,3.2362,154.41,154.39,3.20079987]
[1724485313829,3.2362,154.41,154.35,7.94]
[1724485314022,0.04416822,154.4,154.36,3.24734094]
[1724485314228,0.04416822,154.4,154.39,3.2366]
[1724485314532,0.04416822,154.4,154.39,6.43576823]
[1724485316031,11.1756,154.44,154.4,3.2363]
[1724485316333,11.1756,154.44,154.41,3.19916823]
[1724485316633,11.1756,154.44,154.4,3.2363]
[1724485316835,11.1756,154.44,154.41,3.19568805]
[1724485317032,11.22207237,154.44,154.41,0.04437456]
[1724485320533,0.04647237,154.44,154.41,0.04437456]
[1724485320736,0.04647237,154.44,154.42,3.19537558]
[1724485320938,0.04647237,154.44,154.41,0.04437456]
[1724485321234,0.04647237,154.44,154.42,6.43080823]
[1724485321431,0.04647237,154.44,154.41,0.04437456]
[1724485321739,0.04647237,154.44,154.42,3.19435809]
[1724485321934,0.04647237,154.44,154.41,0.04437456]
[1724485322233,0.04647237,154.44,154.42,3.19440047]
[1724485322447,0.04647237,154.44,154.41,3.28057456]
[1724485322448,0.04647237,154.44,154.41,0.04437456]
[1724485322838,0.04647237,154.44,154.42,3.19426306]
[1724485323143,0.04647237,154.44,154.41,0.04437456]
[1724485323337,0.04647237,154.44,154.42,3.19436805]
[1724485323534,0.04647237,154.44,154.42,3.2359]
[1724485325248,0.04647237,154.44,154.43,3.2358]
[1724485329739,0.04647237,154.44,154.42,3.2359]
[1724485335245,0.04647237,154.44,154.43,3.2358]
[1724485336250,0.04647237,154.44,154.43,6.43038025]
[1724485339248,0.04647237,154.44,154.43,3.2358]
[1724485339548,0.04647237,154.44,154.43,6.43022896]
[1724485341643,0.04647237,154.44,154.43,14.37022896]
[1724485342581,0.04647237,154.44,154.43,11.1758]
[1724485343043,0.04647237,154.44,154.43,14.37023815]
[1724485344448,0.04647237,154.44,154.43,11.1758]
[1724485344647,3.2345,154.49,154.46,3.2351]
[1724485344856,11.1745,154.49,154.46,3.2351]
[1724485345244,3.2349,154.48,154.43,7.94]
[1724485345646,0.04653957,154.47,154.44,0.0491898]
[1724485346349,0.04653957,154.47,154.45,3.2353]
[1724485346650,0.04653957,154.47,154.44,0.0491898]
[1724485346851,0.04653957,154.47,154.44,3.2845898]
[1724485347053,7.94,154.46,154.44,3.2845898]
[1724485348751,7.94,154.46,154.45,3.2354]
[1724485349052,7.94,154.46,154.44,0.0491898]
[1724485349261,7.94,154.46,154.44,3.2845898]
[1724485352059,7.94,154.46,154.45,3.2354]
[1724485354453,7.94,154.46,154.44,0.0491898]
[1724485357156,3.28163957,154.47,154.44,0.0491898]
[1724485357364,3.28163957,154.47,154.44,3.2846898]
[1724485361167,3.28163957,154.47,154.44,0.0491898]
[1724485362167,3.28163957,154.47,154.44,3.2847898]
[1724485365567,0.04653957,154.47,154.44,3.2847898]
[1724485367072,0.04653957,154.47,154.44,0.0491898]
[1724485368266,0.04653957,154.47,154.45,3.2354]
[1724485377585,0.04653957,154.47,154.44,0.0491898]
[1724485378315,0.04653957,154.47,154.45,3.2352]
[1724485379791,0.04653957,154.47,154.46,3.2352]
[1724485380098,0.04653957,154.47,154.46,6.42808092]
[1724485381100,0.04653957,154.47,154.46,3.2352]
[1724485381296,0.04653957,154.47,154.46,6.4277075]
[1724485382999,3.2337,154.53,154.46,11.1325075]
[1724485383292,7.94,154.53,154.47,3.1925075]
[1724485383498,7.94,154.53,154.48,3.1925075]
[1724485383695,7.94,154.52,154.49,6.4269075]
[1724485383900,7.94,154.52,154.49,3.2344]
[1724485384194,7.98583391,154.52,154.5,3.19018381]
[1724485384500,7.98583391,154.52,154.49,3.28368436]
[1724485384698,3.27973391,154.52,154.49,3.28368436]
[1724485384998,11.21973391,154.52,154.49,3.28368436]
[1724485385297,11.21973391,154.52,154.49,0.04928436]
[1724485385695,3.27973391,154.52,154.49,0.04928436]
[1724485385891,7.94,154.5,154.49,0.04928436]
[1724485386098,7.94,154.5,154.49,3.23996529]
[1724485387307,7.94,154.5,154.49,0.04928436]
[1724485387497,7.94,154.5,154.49,3.24060451]
[1724485392198,11.1744,154.5,154.49,3.24060451]
[1724485392398,11.1744,154.5,154.49,0.04928436]
[1724485392593,11.1744,154.5,154.49,3.2406388]
[1724485393208,11.1744,154.5,154.49,0.04928436]
[1724485393401,7.94,154.5,154.49,3.24063704]
[1724485393802,7.94,154.5,154.49,3.24063352]
[1724485394309,11.1744,154.5,154.49,3.24063352]
[1724485394505,11.1744,154.5,154.49,0.04928436]
[1724485396609,3.2344,154.5,154.49,0.04928436]
[1724485396806,11.1744,154.5,154.49,0.04928436]
[1724485400312,0.04583391,154.52,154.49,3.28388436]
[1724485400511,0.04583391,154.52,154.5,3.19001626]
[1724485400707,0.04583391,154.52,154.49,0.04928436]
[1724485401013,0.04583391,154.52,154.5,6.42388044]
[1724485401211,0.04583391,154.52,154.5,3.2342]
[1724485401516,0.04583391,154.52,154.51,3.18956063]
[1724485402212,0.04583391,154.52,154.51,6.42376063]
[1724485402414,0.04583391,154.52,154.51,3.2342]
[1724485404108,0.04583391,154.52,154.49,3.28388436]
[1724485404315,7.94,154.51,154.49,3.28388436]
[1724485404615,7.94,154.51,154.5,3.1900793]
[1724485405018,7.94,154.51,154.49,3.28388436]
[1724485405212,7.94,154.5,154.49,0.04928436]
[1724485405412,7.94,154.5,154.49,3.23972842]
[1724485406415,11.21993391,154.52,154.49,6.47422842]
[1724485406615,11.21993391,154.52,154.49,3.28378436]
[1724485407237,3.27993391,154.52,154.49,3.28378436]
[1724485408215,0.04583391,154.52,154.5,3.2343]
[1724485409021,0.04583391,154.52,154.5,3.2344]
[1724485410820,0.04583391,154.52,154.51,3.2342]
[1724485413221,0.04583391,154.52,154.51,6.42143063]
[1724485413616,0.04583391,154.52,154.51,3.2342]
[1724485413821,0.04583391,154.52,154.51,6.4213752]
[1724485416723,0.04583391,154.52,154.51,3.2342]
[1724485419524,1.3528,154.59,154.5,7.94]
[1724485419729,7.94,154.6,154.53,7.94]
[1724485420726,0.04940791,154.58,154.55,0.04191081]
[1724485421826,3.28210791,154.58,154.55,3.27521081]
[1724485423129,0.04940791,154.58,154.55,3.27521081]
[1724485423343,0.04940791,154.58,154.55,11.21521081]
[1724485424529,0.04940791,154.58,154.55,3.27521081]
[1724485424830,0.04940791,154.58,154.55,11.21521081]
[1724485425735,0.04940791,154.58,154.56,3.2331]
[1724485427933,0.04940791,154.58,154.55,11.21521081]
[1724485428828,0.04940791,154.58,154.56,3.2331]
[1724485429336,0.04940791,154.58,154.57,11.1729]
[1724485429532,0.04940791,154.58,154.55,0.04191081]
[1724485429730,0.04940791,154.58,154.56,7.94]
[1724485429936,0.04940791,154.58,154.56,3.2331]
[1724485430138,0.04940791,154.58,154.55,7.98191081]
[1724485430638,0.04940791,154.58,154.56,3.2331]
[1724485440846,0.04940791,154.58,154.55,3.27511081]
[1724485441560,3.28210791,154.58,154.55,3.27511081]
[1724485442344,0.04940791,154.58,154.55,3.27511081]
[1724485443051,0.04940791,154.58,154.55,11.21511081]
[1724485443944,0.04940791,154.58,154.56,3.233]
[1724485444348,0.04940791,154.58,154.55,0.04191081]
[1724485444765,0.04940791,154.58,154.56,7.94]
[1724485446047,0.04940791,154.58,154.56,11.173]
[1724485449253,0.04940791,154.58,154.57,3.2329]
[1724485449458,0.04940791,154.58,154.56,7.94]
[1724485450352,0.04940791,154.58,154.56,11.173]
[1724485451160,0.04940791,154.58,154.57,3.2329]
[1724485466576,0.04940791,154.58,154.57,11.1729]
[1724485475185,3.2319,154.62,154.58,3.2325]
[1724485475484,3.2319,154.62,154.59,7.94]
[1724485476189,3.2757481,154.62,154.59,7.98275384]
[1724485477779,3.2321,154.61,154.59,0.04275384]
[1724485478683,3.2323,154.6,154.59,0.04275384]
[1724485481293,3.2322,154.61,154.59,0.04275384]
[1724485482990,3.2322,154.61,154.59,7.98275384]
[1724485485489,3.2322,154.61,154.59,0.04275384]
[1724485485704,3.2322,154.61,154.59,7.98275384]
[1724485485889,3.2758481,154.62,154.59,7.98275384]
[1724485486591,0.0438481,154.62,154.61,7.94]
[1724485487190,0.0438481,154.62,154.59,0.04275384]
[1724485487491,0.0438481,154.62,154.61,7.94]
[1724485488285,3.2757481,154.62,154.59,0.04275384]
[1724485488491,3.2757481,154.62,154.6,3.18027757]
[1724485488686,3.2757481,154.62,154.59,7.98275384]
[1724485488918,3.2757481,154.62,154.59,11.21525384]
[1724485489086,3.2757481,154.62,154.6,3.18034117]
[1724485489288,3.2757481,154.62,154.59,11.21525384]
[1724485489487,3.2757481,154.62,154.6,3.18034117]
[1724485489788,3.2757481,154.62,154.59,11.21525384]
[1724485490096,3.2757481,154.62,154.6,3.18040441]
[1724485490393,3.2757481,154.62,154.59,11.21525384]
[1724485490595,3.2757481,154.62,154.6,3.18037923]
[1724485490892,3.2757481,154.62,154.59,11.21525384]
[1724485491288,3.2757481,154.62,154.6,3.18035006]
[1724485491494,3.2757481,154.62,154.59,11.21525384]
[1724485491695,3.2757481,154.62,154.6,3.18035006]
[1724485491894,3.2757481,154.62,154.59,11.21525384]
[1724485492495,3.2757481,154.62,154.6,3.18035006]
[1724485492696,3.2757481,154.62,154.59,11.21525384]
[1724485492994,3.2757481,154.62,154.6,3.1803457]
[1724485493195,3.2757481,154.62,154.59,11.21525384]
[1724485493398,3.2757481,154.62,154.6,3.18034571]
[1724485493594,3.2757481,154.62,154.61,7.94]
[1724485494193,0.0438481,154.62,154.61,7.94]
[1724485494390,0.0438481,154.62,154.61,11.11974268]
[1724485495400,0.0438481,154.62,154.61,11.1721]
[1724485495902,0.0438481,154.62,154.61,17.52947642]
[1724485497006,3.2313,154.65,154.61,17.52947642]
[1724485497303,3.2313,154.65,154.64,7.94]
[1724485498200,3.2315,154.64,154.63,0.04516401]
[1724485498707,3.2319,154.62,154.61,3.17872179]
[1724485500610,3.2321,154.61,154.6,0.04350222]
[1724485507315,3.2321,154.61,154.6,7.98350222]
[1724485510333,0.04703216,154.62,154.6,7.98350222]
[1724485510523,0.04703216,154.62,154.61,7.94]
[1724485514028,3.27883216,154.62,154.6,0.04350222]
[1724485514217,3.27883216,154.62,154.6,7.98350222]
[1724485518631,3.2321,154.61,154.6,0.04350222]
[1724485525333,3.2321,154.61,154.6,7.98350222]
[1724485528527,0.04703216,154.62,154.6,7.98350222]
[1724485528833,0.04703216,154.62,154.61,7.94]
[1724485532762,0.04703216,154.62,154.61,11.172]
[1724485533445,137.58912894,154.66,154.62,3.2318]
[1724485533741,137.58912894,154.66,154.64,7.94]
[1724485535538,137.58912894,154.66,154.63,0.042365]
[1724485535735,137.58912894,154.66,154.63,7.982365]
[1724485542739,3.2312,154.65,154.63,0.042365]
[1724485543056,3.2312,154.65,154.63,7.982365]
[1724485544346,3.2312,154.65,154.63,0.042365]
[1724485544539,134.35792894,154.66,154.63,0.042365]
[1724485544845,3.2314,154.64,154.63,0.042365]
[1724485551349,3.2314,154.64,154.54,2.6417]
[1724485551350,7.94,154.64,154.54,2.6417]
[1724485551557,7.94,154.64,154.57,7.94]
[1724485551851,7.94,154.64,154.58,7.94]
[1724485552250,3.2322,154.61,154.58,7.94]
[1724485552455,3.2322,154.61,154.59,0.04897165]
[1724485557251,3.2323,154.6,154.59,0.04897165]
[1724485567061,3.2332,154.56,154.54,7.94]
[1724485567262,7.94,154.6,154.54,7.94]
[1724485567667,7.94,154.6,154.52,7.94]
[1724485567965,3.2333,154.55,154.53,3.18277375]
[1724485568163,3.2333,154.55,154.54,0.04121781]
[1724485576070,7.94,154.56,154.49,248.54264]
[1724485576372,7.94,154.56,154.49,256.48264]
[1724485576767,3.2343,154.51,154.49,248.54264]
[1724485577569,3.2343,154.51,154.49,222.70264]
[1724485580670,3.27787055,154.52,154.49,222.70264]
[1724485580873,3.27787055,154.52,154.5,7.94]
[1724485581278,0.04387055,154.52,154.5,7.94]
[1724485582272,3.2341,154.51,154.5,7.94]
[1724485582471,3.25199534,154.51,154.49,222.70264]
[1724485583080,3.2344,154.5,154.49,222.70264]
[1724485585079,0.04387055,154.52,154.49,222.70264]
[1724485585080,3.2342,154.51,154.49,230.64264]
[1724485586672,3.2342,154.51,154.49,222.70264]
[1724485586878,3.2342,154.51,154.49,230.64264]
[1724485588186,3.27787055,154.52,154.49,230.64264]
[1724485589080,3.2341,154.51,154.49,230.64264]
[1724485590583,3.27787055,154.52,154.49,230.64264]
[1724485591778,3.27787055,154.52,154.49,222.70264]
[1724485592083,3.27787055,154.52,154.5,7.94]
[1724485592487,0.04387055,154.52,154.51,7.94]
[1724485596389,0.04387055,154.52,154.51,11.1741]
[1724485597087,3.2334,154.55,154.51,11.1741]
[1724485597291,3.2334,154.55,154.53,7.94]
[1724485605892,3.28129679,154.56,154.53,7.94]
[1724485606396,0.04809679,154.56,154.53,7.94]
[1724485607398,0.04809679,154.56,154.52,0.04834496]
[1724485608596,3.2337,154.54,154.52,0.04834496]
[1724485611304,3.2335,154.55,154.52,7.98834496]
[1724485611601,0.04809679,154.56,154.52,0.04834496]
[1724485611799,3.2338,154.53,154.52,0.04834496]
[1724485630021,3.2344,154.5,154.49,222.70264]
[1724485630720,6.47374682,154.5,154.49,222.70264]
[1724485639260,3.2344,154.5,154.49,222.70264]
[1724485640336,3.27679574,154.51,154.49,222.70264]
[1724485640529,3.27679574,154.51,154.5,7.94]